[Event "Titled Tuesday Blitz September 20 Late 2022"]
[White "Christiansen, Johan-Sebastian"]
[Black "Bortnyk, Mykola"]
[WhiteFideId "1512668"]
[BlackFideId "14120836"]
[WhiteElo "2513"]
[BlackElo "2582"]
[Result "1/2-1/2"]
[Round "06"]
[TimeControl "180+1"]
[Date "2022.09.20"]
[WhiteClock "0:00:13"]
[BlackClock "0:00:11"]

1. e4 {[%clk 0:02:59]}  Nf6 {[%clk 0:02:59]} 2. e5 {[%clk 0:02:58]}  Nd5 {[%clk 0:02:59]} 3. d4 {[%clk 0:02:55]}  d6 {[%clk 0:03:00]} 4. Nf3 {[%clk 0:02:55]}  dxe5 {[%clk 0:03:00]} 5. Nxe5 {[%clk 0:02:56]}  c6 {[%clk 0:03:01]} 6. Be2 {[%clk 0:02:53]}  Bf5 {[%clk 0:03:01]} 7. O-O {[%clk 0:02:53]}  Nd7 {[%clk 0:03:01]} 8. Nf3 {[%clk 0:02:52]}  e6 {[%clk 0:03:01]} 9. c4 {[%clk 0:02:52]}  N5f6 {[%clk 0:03:01]} 10. Nc3 {[%clk 0:02:53]}  Bd6 {[%clk 0:03:01]} 11. Bg5 {[%clk 0:02:53]}  Qc7 {[%clk 0:02:55]} 12. Re1 {[%clk 0:02:51]}  O-O {[%clk 0:02:53]} 13. Bh4 {[%clk 0:02:48]}  Rfe8 {[%clk 0:02:51]} 14. Rc1 {[%clk 0:02:47]}  e5 {[%clk 0:02:50]} 15. c5 {[%clk 0:02:41]}  Be7 {[%clk 0:02:47]} 16. Bg3 {[%clk 0:02:17]}  Nh5 {[%clk 0:02:27]} 17. Bxe5 {[%clk 0:02:17]}  Nxe5 {[%clk 0:02:27]} 18. Nxe5 {[%clk 0:02:17]}  Nf4 {[%clk 0:02:27]} 19. Bc4 {[%clk 0:02:15]}  Be6 {[%clk 0:02:11]} 20. Qf3 {[%clk 0:01:31]}  Bxc4 {[%clk 0:02:05]} 21. Nxc4 {[%clk 0:01:31]}  Rad8 {[%clk 0:01:57]} 22. Ne4 {[%clk 0:01:20]}  Rxd4 {[%clk 0:01:46]} 23. Ned6 {[%clk 0:01:18]}  Rf8 {[%clk 0:01:46]} 24. Nf5 {[%clk 0:01:11]}  Bxc5 {[%clk 0:01:34]} 25. Nxd4 {[%clk 0:01:12]}  Bxd4 {[%clk 0:01:35]} 26. b3 {[%clk 0:01:05]}  c5 {[%clk 0:01:32]} 27. Ne3 {[%clk 0:00:57]}  Nd3 {[%clk 0:01:24]} 28. Nd5 {[%clk 0:00:48]}  Nxe1 {[%clk 0:01:24]} 29. Rxe1 {[%clk 0:00:47]}  Qa5 {[%clk 0:01:10]} 30. Re7 {[%clk 0:00:43]}  Qxa2 {[%clk 0:01:01]} 31. h4 {[%clk 0:00:42]}  b5 {[%clk 0:00:50]} 32. h5 {[%clk 0:00:30]}  c4 {[%clk 0:00:40]} 33. bxc4 {[%clk 0:00:29]}  Qxc4 {[%clk 0:00:40]} 34. Rc7 {[%clk 0:00:27]}  Bc5 {[%clk 0:00:29]} 35. g3 {[%clk 0:00:19]}  Qd4 {[%clk 0:00:26]} 36. Kg2 {[%clk 0:00:16]}  b4 {[%clk 0:00:26]} 37. h6 {[%clk 0:00:15]}  a5 {[%clk 0:00:21]} 38. hxg7 {[%clk 0:00:15]}  Kxg7 {[%clk 0:00:21]} 39. Nf4 {[%clk 0:00:14]}  Qxf2+ {[%clk 0:00:20]} 40. Qxf2 {[%clk 0:00:14]}  Bxf2 {[%clk 0:00:21]} 41. Ne6+ {[%clk 0:00:14]}  Kf6 {[%clk 0:00:09]} 42. Nxf8 {[%clk 0:00:15]}  Bd4 {[%clk 0:00:07]} 43. Rb7 {[%clk 0:00:14]}  Ke5 {[%clk 0:00:05]} 44. Rb5+ {[%clk 0:00:14]}  Ke4 {[%clk 0:00:04]} 45. Rxa5 {[%clk 0:00:14]}  Kd3 {[%clk 0:00:05]} 46. Rb5 {[%clk 0:00:13]}  Kc4 {[%clk 0:00:05]} 47. Rb7 {[%clk 0:00:14]}  b3 {[%clk 0:00:06]} 48. Nxh7 {[%clk 0:00:14]}  Bc3 {[%clk 0:00:04]} 49. Rxf7 {[%clk 0:00:07]}  b2 {[%clk 0:00:02]} 50. Rf1 {[%clk 0:00:07]}  Bd2 {[%clk 0:00:03]} 51. Rb1 {[%clk 0:00:05]}  Kb3 {[%clk 0:00:03]} 52. Nf6 {[%clk 0:00:04]}  Kc2 {[%clk 0:00:04]} 53. Rxb2+ {[%clk 0:00:05]}  Kxb2 {[%clk 0:00:05]} 54. Kf3 {[%clk 0:00:06]}  Kb3 {[%clk 0:00:05]} 55. Ke4 {[%clk 0:00:06]}  Kc4 {[%clk 0:00:05]} 56. Nd5 {[%clk 0:00:06]}  Kc5 {[%clk 0:00:05]} 57. Ke5 {[%clk 0:00:06]}  Kc6 {[%clk 0:00:04]} 58. Ke6 {[%clk 0:00:06]}  Kc5 {[%clk 0:00:05]} 59. g4 {[%clk 0:00:06]}  Kc6 {[%clk 0:00:05]} 60. Nf6 {[%clk 0:00:05]}  Kc7 {[%clk 0:00:04]} 61. Ne4 {[%clk 0:00:04]}  Bc1 {[%clk 0:00:04]} 62. Nd6 {[%clk 0:00:05]}  Kd8 {[%clk 0:00:04]} 63. Nf7+ {[%clk 0:00:04]}  Ke8 {[%clk 0:00:05]} 64. Kf6 {[%clk 0:00:05]}  Kf8 {[%clk 0:00:05]} 65. Kg6 {[%clk 0:00:05]}  Kg8 {[%clk 0:00:05]} 66. Nh6+ {[%clk 0:00:06]}  Kf8 {[%clk 0:00:04]} 67. Nf5 {[%clk 0:00:06]}  Kg8 {[%clk 0:00:05]} 68. Kf6 {[%clk 0:00:06]}  Kf8 {[%clk 0:00:05]} 69. Nd6 {[%clk 0:00:07]}  Kg8 {[%clk 0:00:06]} 70. Kf5 {[%clk 0:00:07]}  Kg7 {[%clk 0:00:06]} 71. Ne4 {[%clk 0:00:07]}  Kf7 {[%clk 0:00:06]} 72. Ng3 {[%clk 0:00:08]}  Kg7 {[%clk 0:00:06]} 73. Ne2 {[%clk 0:00:09]}  Bd2 {[%clk 0:00:06]} 74. Nd4 {[%clk 0:00:09]}  Kf7 {[%clk 0:00:06]} 75. Ne6 {[%clk 0:00:10]}  Bc1 {[%clk 0:00:06]} 76. Ng5+ {[%clk 0:00:09]}  Kg7 {[%clk 0:00:06]} 77. Ne4 {[%clk 0:00:09]}  Kf7 {[%clk 0:00:06]} 78. Ke5 {[%clk 0:00:10]}  Kg6 {[%clk 0:00:07]} 79. Ke6 {[%clk 0:00:08]}  Bd2 {[%clk 0:00:05]} 80. Kd5 {[%clk 0:00:09]}  Bc1 {[%clk 0:00:05]} 81. Ke5 {[%clk 0:00:09]}  Bd2 {[%clk 0:00:05]} 82. Kd4 {[%clk 0:00:06]}  Bc1 {[%clk 0:00:05]} 83. Kd3 {[%clk 0:00:07]}  Bf4 {[%clk 0:00:05]} 84. Ke2 {[%clk 0:00:07]}  Bc1 {[%clk 0:00:05]} 85. Kf3 {[%clk 0:00:08]}  Bb2 {[%clk 0:00:04]} 86. Nd6 {[%clk 0:00:08]}  Bc1 {[%clk 0:00:05]} 87. Nc4 {[%clk 0:00:09]}  Bg5 {[%clk 0:00:05]} 88. Ke4 {[%clk 0:00:10]}  Kf6 {[%clk 0:00:05]} 89. Ne5 {[%clk 0:00:09]}  Bc1 {[%clk 0:00:06]} 90. Nf3 {[%clk 0:00:10]}  Kg6 {[%clk 0:00:06]} 91. Kd3 {[%clk 0:00:08]}  Kf6 {[%clk 0:00:06]} 92. Ke2 {[%clk 0:00:08]}  Kg6 {[%clk 0:00:06]} 93. Kf2 {[%clk 0:00:08]}  Kf6 {[%clk 0:00:07]} 94. Kg3 {[%clk 0:00:09]}  Kg6 {[%clk 0:00:07]} 95. Ne5+ {[%clk 0:00:10]}  Kf6 {[%clk 0:00:08]} 96. Nd3 {[%clk 0:00:10]}  Bd2 {[%clk 0:00:09]} 97. Kf3 {[%clk 0:00:11]}  Kg6 {[%clk 0:00:09]} 98. Nf2 {[%clk 0:00:12]}  Bc1 {[%clk 0:00:08]} 99. Kg3 {[%clk 0:00:12]}  Be3 {[%clk 0:00:08]} 100. Ne4 {[%clk 0:00:13]}  Bc1 {[%clk 0:00:08]} 101. Kf3 {[%clk 0:00:14]}  Bg5 {[%clk 0:00:08]} 102. Ke2 {[%clk 0:00:12]}  Bf4 {[%clk 0:00:08]} 103. Kd3 {[%clk 0:00:12]}  Bh6 {[%clk 0:00:08]} 104. Ke2 {[%clk 0:00:11]}  Bg5 {[%clk 0:00:08]} 105. Kf3 {[%clk 0:00:12]}  Bh6 {[%clk 0:00:09]} 106. Kg3 {[%clk 0:00:12]}  Bg5 {[%clk 0:00:10]} 107. Kh3 {[%clk 0:00:13]}  Bh6 {[%clk 0:00:10]} 108. Kh4 {[%clk 0:00:13]}  Bf4 {[%clk 0:00:11]} 109. Nf2 {[%clk 0:00:13]} 1/2-1/2


[Site "https://www.chess.com"]

[Event "Titled Tuesday Blitz September 20 Late 2022"]
[White "Danielyan, Vahe"]
[Black "Panarin, Mikhail"]
[WhiteFideId "13304828"]
[BlackFideId "4153251"]
[WhiteElo "2421"]
[BlackElo "2495"]
[Result "0-1"]
[Round "06"]
[TimeControl "180+1"]
[Date "2022.09.20"]
[WhiteClock "0:02:10"]
[BlackClock "0:02:29"]

1. e4 {[%clk 0:02:55]}  c5 {[%clk 0:03:00]} 2. g3 {[%clk 0:02:54]}  Nc6 {[%clk 0:02:59]} 3. Bg2 {[%clk 0:02:54]}  g6 {[%clk 0:03:00]} 4. d3 {[%clk 0:02:55]}  Bg7 {[%clk 0:03:00]} 5. f4 {[%clk 0:02:55]}  d6 {[%clk 0:02:59]} 6. Nf3 {[%clk 0:02:56]}  e6 {[%clk 0:02:59]} 7. O-O {[%clk 0:02:56]}  Nge7 {[%clk 0:03:00]} 8. Nc3 {[%clk 0:02:56]}  O-O {[%clk 0:02:58]} 9. Be3 {[%clk 0:02:57]}  Nd4 {[%clk 0:02:58]} 10. h3 {[%clk 0:02:57]}  Bd7 {[%clk 0:02:57]} 11. Qd2 {[%clk 0:02:57]}  Rb8 {[%clk 0:02:55]} 12. Rae1 {[%clk 0:02:56]}  b5 {[%clk 0:02:54]} 13. g4 {[%clk 0:02:55]}  f5 {[%clk 0:02:51]} 14. gxf5 {[%clk 0:02:52]}  b4 {[%clk 0:02:41]} 15. fxg6 {[%clk 0:02:46]}  bxc3 {[%clk 0:02:39]} 16. gxh7+ {[%clk 0:02:47]}  Kh8 {[%clk 0:02:39]} 17. bxc3 {[%clk 0:02:42]}  Nxf3+ {[%clk 0:02:38]} 18. Rxf3 {[%clk 0:02:41]}  Ng6 {[%clk 0:02:37]} 19. Qf2 {[%clk 0:02:10]}  Bxc3 {[%clk 0:02:29]} 20. Rf1 {[%clk 0:02:10]} 0-1


[Site "https://www.chess.com"]

[Event "Titled Tuesday Blitz September 20 Late 2022"]
[White "Fernandez De La Vara, Arnaldo"]
[Black "Zhigalko, Sergei"]
[WhiteFideId "3518388"]
[BlackFideId "13502956"]
[WhiteElo "2387"]
[BlackElo "2662"]
[Result "1-0"]
[Round "06"]
[TimeControl "180+1"]
[Date "2022.09.20"]
[WhiteClock "0:00:05"]
[BlackClock "0:00:01"]

1. Nf3 {[%clk 0:03:00]}  d5 {[%clk 0:02:59]} 2. b3 {[%clk 0:03:01]}  Bf5 {[%clk 0:02:55]} 3. Bb2 {[%clk 0:03:02]}  e6 {[%clk 0:02:55]} 4. d3 {[%clk 0:03:03]}  Nf6 {[%clk 0:02:53]} 5. g3 {[%clk 0:03:03]}  h6 {[%clk 0:02:52]} 6. Bg2 {[%clk 0:03:04]}  Be7 {[%clk 0:02:52]} 7. O-O {[%clk 0:03:04]}  O-O {[%clk 0:02:52]} 8. Nbd2 {[%clk 0:03:05]}  a5 {[%clk 0:02:53]} 9. a4 {[%clk 0:03:05]}  c6 {[%clk 0:02:53]} 10. Qe1 {[%clk 0:03:05]}  Na6 {[%clk 0:02:52]} 11. e4 {[%clk 0:03:05]}  Bh7 {[%clk 0:02:53]} 12. Qe2 {[%clk 0:03:03]}  Re8 {[%clk 0:02:50]} 13. Kh1 {[%clk 0:03:02]}  Nb4 {[%clk 0:02:46]} 14. Ne1 {[%clk 0:02:54]}  Qb6 {[%clk 0:02:38]} 15. e5 {[%clk 0:02:39]}  Nd7 {[%clk 0:02:33]} 16. f4 {[%clk 0:02:40]}  Qa6 {[%clk 0:02:16]} 17. g4 {[%clk 0:02:37]}  Rad8 {[%clk 0:01:47]} 18. Ndf3 {[%clk 0:02:22]}  c5 {[%clk 0:01:41]} 19. Bh3 {[%clk 0:01:55]}  c4 {[%clk 0:01:37]} 20. Rd1 {[%clk 0:01:52]}  cxd3 {[%clk 0:01:34]} 21. cxd3 {[%clk 0:01:53]}  d4 {[%clk 0:01:02]} 22. Nxd4 {[%clk 0:01:43]}  Nc5 {[%clk 0:00:58]} 23. f5 {[%clk 0:01:44]}  exf5 {[%clk 0:00:50]} 24. gxf5 {[%clk 0:01:41]}  Bg5 {[%clk 0:00:23]} 25. Rf3 {[%clk 0:01:26]}  Rxd4 {[%clk 0:00:15]} 26. Bxd4 {[%clk 0:01:27]}  Nxb3 {[%clk 0:00:15]} 27. Bb2 {[%clk 0:00:51]}  Qc6 {[%clk 0:00:16]} 28. Bg2 {[%clk 0:00:48]}  Qxa4 {[%clk 0:00:16]} 29. d4 {[%clk 0:00:41]}  Nd5 {[%clk 0:00:06]} 30. Nd3 {[%clk 0:00:33]}  Nxd4 {[%clk 0:00:05]} 31. Bxd4 {[%clk 0:00:28]}  Qxd4 {[%clk 0:00:06]} 32. Nf2 {[%clk 0:00:15]}  Nf4 {[%clk 0:00:02]} 33. Rxd4 {[%clk 0:00:04]}  Nxe2 {[%clk 0:00:03]} 34. Rd7 {[%clk 0:00:05]}  Rxe5 {[%clk 0:00:02]} 35. f6 {[%clk 0:00:04]}  Bxf6 {[%clk 0:00:02]} 36. Ng4 {[%clk 0:00:05]}  Re8 {[%clk 0:00:02]} 37. Rxf6 {[%clk 0:00:05]}  gxf6 {[%clk 0:00:02]} 38. Nxf6+ {[%clk 0:00:06]}  Kf8 {[%clk 0:00:03]} 39. Nxe8 {[%clk 0:00:07]}  Kxe8 {[%clk 0:00:03]} 40. Rxb7 {[%clk 0:00:08]}  Bd3 {[%clk 0:00:02]} 41. Ra7 {[%clk 0:00:07]}  Nf4 {[%clk 0:00:01]} 42. Bc6+ {[%clk 0:00:06]}  Kf8 {[%clk 0:00:01]} 43. Rxa5 {[%clk 0:00:07]}  Bg6 {[%clk 0:00:01]} 44. Bf3 {[%clk 0:00:06]}  Ne6 {[%clk 0:00:02]} 45. Re5 {[%clk 0:00:06]}  Nd4 {[%clk 0:00:02]} 46. Bg2 {[%clk 0:00:05]}  Ne6 {[%clk 0:00:02]} 47. Kg1 {[%clk 0:00:06]}  Nf4 {[%clk 0:00:03]} 48. Bf1 {[%clk 0:00:06]}  Ne6 {[%clk 0:00:02]} 49. Kf2 {[%clk 0:00:06]}  Ng5 {[%clk 0:00:03]} 50. Kg3 {[%clk 0:00:06]}  Ne4+ {[%clk 0:00:03]} 51. Kf4 {[%clk 0:00:05]}  Ng5 {[%clk 0:00:03]} 52. Ra5 {[%clk 0:00:04]}  Ne6+ {[%clk 0:00:04]} 53. Ke5 {[%clk 0:00:04]}  Kg7 {[%clk 0:00:04]} 54. h4 {[%clk 0:00:05]}  h5 {[%clk 0:00:01]} 55. Bc4 {[%clk 0:00:05]} 1-0


[Site "https://www.chess.com"]

[Event "Titled Tuesday Blitz September 20 Late 2022"]
[White "Fiorito, Joaquin"]
[Black "Kalogeris, Ioannis"]
[WhiteFideId "180173"]
[BlackFideId "4239563"]
[WhiteElo "1758"]
[BlackElo "2291"]
[Result "0-1"]
[Round "06"]
[TimeControl "180+1"]
[Date "2022.09.20"]
[WhiteClock "0:01:15"]
[BlackClock "0:00:16"]

1. d4 {[%clk 0:03:00]}  Nf6 {[%clk 0:02:57]} 2. Nc3 {[%clk 0:02:59]}  d5 {[%clk 0:02:51]} 3. Bf4 {[%clk 0:03:00]}  c6 {[%clk 0:02:51]} 4. e3 {[%clk 0:03:00]}  g6 {[%clk 0:02:51]} 5. Be2 {[%clk 0:02:58]}  Bg7 {[%clk 0:02:51]} 6. h4 {[%clk 0:02:59]}  h5 {[%clk 0:02:51]} 7. Nf3 {[%clk 0:02:59]}  Bg4 {[%clk 0:02:50]} 8. Ne5 {[%clk 0:02:59]}  Bxe2 {[%clk 0:02:49]} 9. Qxe2 {[%clk 0:03:00]}  Nbd7 {[%clk 0:02:50]} 10. O-O-O {[%clk 0:03:01]}  Nxe5 {[%clk 0:02:37]} 11. Bxe5 {[%clk 0:03:02]}  Kf8 {[%clk 0:02:37]} 12. f3 {[%clk 0:03:02]}  Nd7 {[%clk 0:02:32]} 13. Bxg7+ {[%clk 0:03:01]}  Kxg7 {[%clk 0:02:33]} 14. e4 {[%clk 0:02:51]}  e6 {[%clk 0:02:31]} 15. e5 {[%clk 0:02:51]}  c5 {[%clk 0:02:24]} 16. g4 {[%clk 0:02:50]}  Qb6 {[%clk 0:02:17]} 17. dxc5 {[%clk 0:02:44]}  Nxc5 {[%clk 0:02:13]} 18. Rhg1 {[%clk 0:02:43]}  Rac8 {[%clk 0:02:03]} 19. f4 {[%clk 0:02:38]}  d4 {[%clk 0:01:54]} 20. Ne4 {[%clk 0:02:32]}  d3 {[%clk 0:01:32]} 21. Qg2 {[%clk 0:02:06]}  Na4 {[%clk 0:01:07]} 22. c3 {[%clk 0:02:02]}  Rc4 {[%clk 0:00:48]} 23. Rxd3 {[%clk 0:01:46]}  Rxe4 {[%clk 0:00:48]} 24. gxh5 {[%clk 0:01:38]}  Rxh5 {[%clk 0:00:47]} 25. Rg3 {[%clk 0:01:37]}  Qxb2+ {[%clk 0:00:27]} 26. Qxb2 {[%clk 0:01:35]}  Nxb2 {[%clk 0:00:28]} 27. Kxb2 {[%clk 0:01:36]}  Rxf4 {[%clk 0:00:29]} 28. Rd1 {[%clk 0:01:29]}  Rxe5 {[%clk 0:00:27]} 29. Rd7 {[%clk 0:01:28]}  Rb5+ {[%clk 0:00:26]} 30. Ka3 {[%clk 0:01:28]}  Rxh4 {[%clk 0:00:23]} 31. Rf3 {[%clk 0:01:29]}  Rf5 {[%clk 0:00:23]} 32. Re3 {[%clk 0:01:28]}  Kf6 {[%clk 0:00:16]} 33. Rxb7 {[%clk 0:01:28]}  g5 {[%clk 0:00:17]} 34. Rxa7 {[%clk 0:01:27]}  g4 {[%clk 0:00:17]} 35. Ra4 {[%clk 0:01:27]}  Rh3 {[%clk 0:00:16]} 36. Re1 {[%clk 0:01:20]}  Rxc3+ {[%clk 0:00:16]} 37. Kb2 {[%clk 0:01:20]}  Rg3 {[%clk 0:00:17]} 38. Rae4 {[%clk 0:01:17]}  Rf2+ {[%clk 0:00:17]} 39. R1e2 {[%clk 0:01:13]}  Rxe2+ {[%clk 0:00:16]} 40. Rxe2 {[%clk 0:01:14]}  Rf3 {[%clk 0:00:16]} 41. a4 {[%clk 0:01:15]}  g3 {[%clk 0:00:16]} 42. a5 {[%clk 0:01:15]}  Rf2 {[%clk 0:00:16]} 0-1


[Site "https://www.chess.com"]

[Event "Titled Tuesday Blitz September 20 Late 2022"]
[White "Girel, Joseph"]
[Black "Gurevich, Dmitry"]
[WhiteFideId "36033561"]
[BlackFideId "2000407"]
[WhiteElo "2104"]
[BlackElo "2506"]
[Result "1-0"]
[Round "06"]
[TimeControl "180+1"]
[Date "2022.09.20"]
[WhiteClock "0:00:30"]
[BlackClock "0:00:05"]

1. d4 {[%clk 0:03:00]}  Nf6 {[%clk 0:02:54]} 2. Nc3 {[%clk 0:03:01]}  d5 {[%clk 0:02:53]} 3. Bg5 {[%clk 0:03:01]}  Nbd7 {[%clk 0:02:51]} 4. f3 {[%clk 0:03:00]}  h6 {[%clk 0:02:50]} 5. Bh4 {[%clk 0:02:59]}  e6 {[%clk 0:02:47]} 6. e4 {[%clk 0:02:58]}  Be7 {[%clk 0:02:46]} 7. e5 {[%clk 0:02:51]}  Nh7 {[%clk 0:02:44]} 8. Bxe7 {[%clk 0:02:51]}  Qxe7 {[%clk 0:02:44]} 9. f4 {[%clk 0:02:52]}  a6 {[%clk 0:02:42]} 10. Nf3 {[%clk 0:02:52]}  O-O {[%clk 0:02:38]} 11. Bd3 {[%clk 0:02:52]}  f5 {[%clk 0:02:35]} 12. Ne2 {[%clk 0:02:51]}  c5 {[%clk 0:02:33]} 13. c3 {[%clk 0:02:51]}  b5 {[%clk 0:02:32]} 14. O-O {[%clk 0:02:48]}  b4 {[%clk 0:02:31]} 15. cxb4 {[%clk 0:02:46]}  c4 {[%clk 0:02:29]} 16. Bc2 {[%clk 0:02:44]}  Qxb4 {[%clk 0:02:29]} 17. b3 {[%clk 0:02:45]}  Bb7 {[%clk 0:02:25]} 18. a3 {[%clk 0:02:43]}  Qb6 {[%clk 0:02:23]} 19. Nc3 {[%clk 0:02:41]}  cxb3 {[%clk 0:02:17]} 20. Bxb3 {[%clk 0:02:42]}  Rac8 {[%clk 0:02:17]} 21. Na4 {[%clk 0:02:38]}  Qa5 {[%clk 0:02:15]} 22. Qe1 {[%clk 0:02:33]}  Qxe1 {[%clk 0:02:12]} 23. Rfxe1 {[%clk 0:02:34]}  g5 {[%clk 0:02:10]} 24. g3 {[%clk 0:02:31]}  Bc6 {[%clk 0:02:04]} 25. Nc5 {[%clk 0:02:25]}  Nxc5 {[%clk 0:02:03]} 26. dxc5 {[%clk 0:02:26]}  Kf7 {[%clk 0:01:58]} 27. Nd4 {[%clk 0:02:25]}  Ke7 {[%clk 0:01:58]} 28. Rab1 {[%clk 0:02:24]}  Rg8 {[%clk 0:01:55]} 29. Bc2 {[%clk 0:02:19]}  Nf8 {[%clk 0:01:38]} 30. Rb6 {[%clk 0:02:18]}  Bb5 {[%clk 0:01:33]} 31. a4 {[%clk 0:02:11]}  Be8 {[%clk 0:01:22]} 32. c6 {[%clk 0:01:59]}  gxf4 {[%clk 0:01:16]} 33. Rb7+ {[%clk 0:01:57]}  Kd8 {[%clk 0:01:14]} 34. Bxf5 {[%clk 0:01:50]}  Bxc6 {[%clk 0:01:05]} 35. Rb6 {[%clk 0:01:43]}  Bd7 {[%clk 0:01:05]} 36. Rd6 {[%clk 0:01:32]}  Ke7 {[%clk 0:00:59]} 37. Bh3 {[%clk 0:01:23]}  fxg3 {[%clk 0:00:58]} 38. Rb1 {[%clk 0:01:22]}  gxh2+ {[%clk 0:00:56]} 39. Kxh2 {[%clk 0:01:21]}  Rc4 {[%clk 0:00:49]} 40. Rd1 {[%clk 0:01:16]}  Rxa4 {[%clk 0:00:43]} 41. Rd2 {[%clk 0:01:05]}  Ra3 {[%clk 0:00:42]} 42. Rb2 {[%clk 0:00:54]}  Rd3 {[%clk 0:00:39]} 43. Nc6+ {[%clk 0:00:51]}  Bxc6 {[%clk 0:00:37]} 44. Rxc6 {[%clk 0:00:52]}  Rxh3+ {[%clk 0:00:28]} 45. Kxh3 {[%clk 0:00:50]}  Nd7 {[%clk 0:00:27]} 46. Rb7 {[%clk 0:00:50]}  Rd8 {[%clk 0:00:24]} 47. Rxa6 {[%clk 0:00:49]}  d4 {[%clk 0:00:24]} 48. Rd6 {[%clk 0:00:48]}  Ke8 {[%clk 0:00:15]} 49. Rxe6+ {[%clk 0:00:48]}  Kf7 {[%clk 0:00:15]} 50. Rd6 {[%clk 0:00:47]}  Ke7 {[%clk 0:00:15]} 51. Rxd4 {[%clk 0:00:36]}  Ke6 {[%clk 0:00:15]} 52. Rd6+ {[%clk 0:00:35]}  Ke7 {[%clk 0:00:15]} 53. Rxh6 {[%clk 0:00:33]}  Ke8 {[%clk 0:00:07]} 54. Rh8+ {[%clk 0:00:33]}  Nf8 {[%clk 0:00:06]} 55. e6 {[%clk 0:00:30]}  Rd3+ {[%clk 0:00:05]} 56. Kg2 {[%clk 0:00:30]} 1-0


[Site "https://www.chess.com"]

[Event "Titled Tuesday Blitz September 20 Late 2022"]
[White "Gomez Ledo, Roberto Carlos"]
[Black "Pakleza, Zbigniew"]
[WhiteFideId "3507076"]
[BlackFideId "1119290"]
[WhiteElo "2379"]
[BlackElo "2411"]
[Result "0-1"]
[Round "06"]
[TimeControl "180+1"]
[Date "2022.09.20"]
[WhiteClock "0:00:04"]
[BlackClock "0:00:05"]

1. d4 {[%clk 0:02:54]}  d6 {[%clk 0:02:59]} 2. Bf4 {[%clk 0:02:51]}  Nc6 {[%clk 0:02:58]} 3. Nf3 {[%clk 0:02:50]}  Bg4 {[%clk 0:02:57]} 4. Nbd2 {[%clk 0:02:47]}  Nf6 {[%clk 0:02:51]} 5. h3 {[%clk 0:02:47]}  Bh5 {[%clk 0:02:51]} 6. Bh2 {[%clk 0:02:47]}  e6 {[%clk 0:02:41]} 7. c3 {[%clk 0:02:43]}  d5 {[%clk 0:02:37]} 8. e3 {[%clk 0:02:35]}  Bd6 {[%clk 0:02:36]} 9. Qb3 {[%clk 0:02:19]}  Rb8 {[%clk 0:02:34]} 10. Ne5 {[%clk 0:02:13]}  Bxe5 {[%clk 0:02:27]} 11. dxe5 {[%clk 0:02:12]}  Nd7 {[%clk 0:02:28]} 12. Bb5 {[%clk 0:02:08]}  O-O {[%clk 0:02:23]} 13. f4 {[%clk 0:01:59]}  Qh4+ {[%clk 0:02:16]} 14. g3 {[%clk 0:01:35]}  Qxh3 {[%clk 0:01:59]} 15. Bf1 {[%clk 0:01:20]}  Qg4 {[%clk 0:01:58]} 16. Bg1 {[%clk 0:01:13]}  Nc5 {[%clk 0:01:45]} 17. Qa3 {[%clk 0:01:03]}  Ne4 {[%clk 0:01:28]} 18. Nxe4 {[%clk 0:00:54]}  dxe4 {[%clk 0:01:28]} 19. Rh4 {[%clk 0:00:52]}  Qf3 {[%clk 0:01:10]} 20. Qb3 {[%clk 0:00:33]}  Rfd8 {[%clk 0:01:03]} 21. Qc2 {[%clk 0:00:33]}  Rd5 {[%clk 0:00:44]} 22. Rxh5 {[%clk 0:00:26]}  Qxh5 {[%clk 0:00:42]} 23. Qg2 {[%clk 0:00:26]}  Rbd8 {[%clk 0:00:18]} 24. Be2 {[%clk 0:00:26]}  Qg6 {[%clk 0:00:14]} 25. Qh3 {[%clk 0:00:23]}  Rd2 {[%clk 0:00:10]} 26. Bh5 {[%clk 0:00:20]}  Qh6 {[%clk 0:00:10]} 27. Bf2 {[%clk 0:00:09]}  Rxb2 {[%clk 0:00:07]} 28. Qh4 {[%clk 0:00:06]}  f6 {[%clk 0:00:06]} 29. g4 {[%clk 0:00:05]}  g6 {[%clk 0:00:04]} 30. Qxf6 {[%clk 0:00:05]}  Qg7 {[%clk 0:00:05]} 31. Qxe6+ {[%clk 0:00:04]}  Qf7 {[%clk 0:00:05]} 0-1


[Site "https://www.chess.com"]

[Event "Titled Tuesday Blitz September 20 Late 2022"]
[White "Hansen, Eric"]
[Black "Tillyaev, Ulugbek"]
[WhiteFideId "2606771"]
[BlackFideId "14202441"]
[WhiteElo "2568"]
[BlackElo "2377"]
[Result "1-0"]
[Round "06"]
[TimeControl "180+1"]
[Date "2022.09.20"]
[WhiteClock "0:01:04"]
[BlackClock "0:00:09"]

1. e4 {[%clk 0:02:45]}  c5 {[%clk 0:02:58]} 2. Nf3 {[%clk 0:02:45]}  e6 {[%clk 0:02:57]} 3. d4 {[%clk 0:02:45]}  cxd4 {[%clk 0:02:58]} 4. Nxd4 {[%clk 0:02:45]}  a6 {[%clk 0:02:59]} 5. Bd3 {[%clk 0:02:45]}  Nc6 {[%clk 0:02:58]} 6. Nxc6 {[%clk 0:02:45]}  dxc6 {[%clk 0:02:59]} 7. Nd2 {[%clk 0:02:45]}  Qc7 {[%clk 0:02:57]} 8. Qg4 {[%clk 0:02:41]}  Nf6 {[%clk 0:02:49]} 9. Qg3 {[%clk 0:02:41]}  Qxg3 {[%clk 0:02:33]} 10. hxg3 {[%clk 0:02:41]}  e5 {[%clk 0:02:13]} 11. Nc4 {[%clk 0:02:40]}  Nd7 {[%clk 0:02:13]} 12. a4 {[%clk 0:02:40]}  b6 {[%clk 0:01:46]} 13. Be3 {[%clk 0:02:37]}  Rb8 {[%clk 0:01:41]} 14. f4 {[%clk 0:02:38]}  f6 {[%clk 0:01:35]} 15. O-O-O {[%clk 0:02:38]}  Be7 {[%clk 0:01:29]} 16. g4 {[%clk 0:02:36]}  O-O {[%clk 0:01:15]} 17. f5 {[%clk 0:02:34]}  Nc5 {[%clk 0:01:10]} 18. a5 {[%clk 0:02:35]}  Nxd3+ {[%clk 0:01:09]} 19. Rxd3 {[%clk 0:02:35]}  bxa5 {[%clk 0:01:08]} 20. Nxa5 {[%clk 0:02:32]}  Rb5 {[%clk 0:00:42]} 21. Nxc6 {[%clk 0:02:32]}  Bc5 {[%clk 0:00:34]} 22. Bxc5 {[%clk 0:02:15]}  Rxc5 {[%clk 0:00:35]} 23. Rd6 {[%clk 0:02:15]}  h6 {[%clk 0:00:28]} 24. Ne7+ {[%clk 0:02:04]}  Kf7 {[%clk 0:00:27]} 25. Nd5 {[%clk 0:02:02]}  a5 {[%clk 0:00:25]} 26. Rh3 {[%clk 0:01:53]}  Kg8 {[%clk 0:00:21]} 27. Rb3 {[%clk 0:01:44]}  Rc4 {[%clk 0:00:18]} 28. Rb8 {[%clk 0:01:38]}  Ba6 {[%clk 0:00:10]} 29. Rxf8+ {[%clk 0:01:35]}  Kxf8 {[%clk 0:00:11]} 30. Rxa6 {[%clk 0:01:36]}  Rxe4 {[%clk 0:00:10]} 31. Ra8+ {[%clk 0:01:33]}  Kf7 {[%clk 0:00:10]} 32. Ra7+ {[%clk 0:01:33]}  Kg8 {[%clk 0:00:10]} 33. Ne7+ {[%clk 0:01:32]}  Kh7 {[%clk 0:00:10]} 34. Ng6 {[%clk 0:01:28]}  h5 {[%clk 0:00:09]} 35. g5 {[%clk 0:01:04]} 1-0


[Site "https://www.chess.com"]